fUSD/lending_fUSD_20260106
["ID","MTS","AMOUNT","RATE_DAILY","PERIOD"]
[400502584,1767676239764,-1000.0,0.00022048,2]
[400502586,1767676239773,-152.33232489,0.0002206,2]
[400502588,1767676239784,-350.0,0.00022068,2]
[400502590,1767676239793,-150.00000001,0.000221,4]
[400502592,1767676239802,-150.0,0.000221,4]
[400502594,1767676239811,-282.33858453,0.000221,4]
[400502596,1767676239820,-150.0,0.000221,4]
[400502598,1767676239829,-150.0,0.000221,4]
[400502600,1767676239838,-150.0,0.000221,4]
[400502602,1767676239847,-150.0,0.000221,4]
[400502604,1767676239856,-150.0,0.000221,4]
[400502606,1767676239865,-150.0,0.000221,4]
[400502608,1767676239875,-283.81134393,0.000221,4]
[400502610,1767676239884,-150.0,0.000221,4]
[400502612,1767676239893,-150.0,0.000221,4]
[400502614,1767676239902,-150.0,0.000221,4]
[400502616,1767676239914,-150.0,0.000221,4]
[400502618,1767676239934,-150.0,0.000221,4]
[400502620,1767676239952,-150.0,0.000221,4]
[400502622,1767676239961,-150.0,0.000221,4]
[400502624,1767676239970,-150.0,0.000221,4]
[400502626,1767676239979,-150.0,0.000221,4]
[400502628,1767676239989,-150.0,0.000221,4]
[400502630,1767676239998,-150.0,0.000221,4]
[400502632,1767676240008,-150.0,0.000221,4]
[400502634,1767676240016,-150.0,0.000221,4]
[400502636,1767676240026,-150.0,0.000221,4]
[400502638,1767676240035,-150.0,0.000221,4]
[400502640,1767676240044,-150.0,0.000221,4]
[400502642,1767676240053,-150.0,0.000221,4]
[400502644,1767676240063,-150.0,0.000221,4]
[400502646,1767676240072,-150.0,0.000221,4]
[400502648,1767676240081,-150.0,0.000221,4]
[400502650,1767676240090,-150.0,0.000221,4]
[400502652,1767676240100,-150.0,0.000221,4]
[400502654,1767676240110,-150.0,0.000221,4]
[400502656,1767676240120,-150.0,0.000221,4]
[400502658,1767676240129,-150.0,0.000221,4]
[400502660,1767676240139,-150.0,0.000221,4]
[400502662,1767676240149,-161.33447614,0.000221,4]
[400502664,1767676240158,-150.0,0.000221,4]
[400502666,1767676240167,-150.0,0.000221,4]
[400502668,1767676240176,-150.0,0.000221,4]
[400502670,1767676240185,-150.0,0.000221,4]
[400502672,1767676240195,-150.0,0.000221,4]
[400502674,1767676240203,-150.0,0.000221,4]
[400502677,1767676240214,-150.0,0.000221,4]
[400502679,1767676240223,-150.0,0.000221,4]
[400502681,1767676240233,-150.0,0.000221,4]
[400502683,1767676240242,-150.0,0.000221,4]
[400502685,1767676240252,-150.0,0.000221,4]
[400502687,1767676240261,-150.0,0.000221,4]
[400502689,1767676240270,-150.0,0.000221,4]
[400502691,1767676240280,-150.0,0.000221,4]
[400502692,1767676240289,-155.13682434,0.000221,4]
[400502693,1767676240297,-150.0,0.000221,4]
[400502694,1767676240306,-150.0,0.000221,4]
[400502695,1767676240315,-150.0,0.000221,4]
[400502696,1767676240324,-241.77017008,0.000221,4]
[400502697,1767676240333,-159.2619942,0.000221,4]
[400502698,1767676240342,-159.2619942,0.000221,4]
[400502699,1767676240350,-159.2619942,0.000221,4]
[400502700,1767676240359,-159.2619942,0.000221,4]
[400502701,1767676240368,-159.2619942,0.000221,4]
[400502702,1767676240377,-159.2619942,0.000221,4]
[400502703,1767676240387,-159.2619942,0.000221,4]
[400502704,1767676240395,-159.2619942,0.000221,4]
[400502705,1767676240404,-159.2619942,0.000221,4]
[400502706,1767676240414,-159.2619942,0.000221,4]
[400502708,1767676240423,-159.2619942,0.000221,4]
[400502710,1767676240432,-159.2619942,0.000221,4]
[400502712,1767676240441,-159.2619942,0.000221,4]
[400502714,1767676240450,-159.2619942,0.000221,4]
[400502716,1767676240460,-159.2619942,0.000221,4]
[400502718,1767676240469,-159.2619942,0.000221,4]
[400502720,1767676240478,-159.2619942,0.000221,4]
[400502722,1767676240487,-159.2619942,0.000221,4]
[400502724,1767676240497,-159.2619942,0.000221,4]
[400502726,1767676240507,-159.2619942,0.000221,4]
[400502728,1767676240516,-159.2619942,0.000221,4]
[400502730,1767676240526,-159.2619942,0.000221,4]
[400502733,1767676240536,-159.2619942,0.000221,4]
[400502734,1767676240546,-159.2619942,0.000221,4]
[400502736,1767676240555,-159.2619942,0.000221,4]
[400502739,1767676240567,-159.2619942,0.000221,4]
[400502740,1767676240576,-159.2619942,0.000221,4]
[400502742,1767676240586,-159.2619942,0.000221,4]
[400502745,1767676240596,-159.2619942,0.000221,4]
[400502746,1767676240605,-159.2619942,0.000221,4]
[400502748,1767676240615,-159.2619942,0.000221,4]
[400502750,1767676240624,-159.2619942,0.000221,4]
[400502752,1767676240634,-159.2619942,0.000221,4]
[400502754,1767676240645,-159.2619942,0.000221,4]
[400502756,1767676240656,-159.2619942,0.000221,4]
[400502758,1767676240665,-159.2619942,0.000221,4]
[400502760,1767676240674,-159.2619942,0.000221,4]
[400502762,1767676240683,-159.2619942,0.000221,4]
[400502764,1767676240695,-159.2619942,0.000221,4]
[400502766,1767676240707,-159.2619942,0.000221,4]
[400502768,1767676240716,-159.2619942,0.000221,4]
[400502771,1767676240726,-159.2619942,0.000221,4]
[400502772,1767676240735,-159.2619942,0.000221,4]
[400502774,1767676240744,-159.2619942,0.000221,4]
[400502777,1767676240754,-159.2619942,0.000221,4]
[400502779,1767676240764,-159.2619942,0.000221,4]
[400502781,1767676240773,-159.2619942,0.000221,4]
[400502783,1767676240784,-159.2619942,0.000221,4]
[400502785,1767676240793,-159.2619942,0.000221,4]
[400502787,1767676240803,-159.2619942,0.000221,4]
[400502789,1767676240811,-159.2619942,0.000221,4]
[400502791,1767676240822,-159.2619942,0.000221,4]
[400502793,1767676240831,-159.2619942,0.000221,4]
[400502795,1767676240841,-159.2619942,0.000221,4]
[400502797,1767676240851,-159.2619942,0.000221,4]
[400502799,1767676240860,-159.2619942,0.000221,4]
[400502801,1767676240870,-159.2619942,0.000221,4]
[400502803,1767676240880,-159.2619942,0.000221,4]
[400502805,1767676240890,-159.2619942,0.000221,4]
[400502827,1767676241081,-159.2619942,0.000221,4]
[400502829,1767676241093,-159.2619942,0.000221,4]
[400502832,1767676241103,-159.2619942,0.000221,4]
[400502834,1767676241112,-159.2619942,0.000221,4]
[400502836,1767676241123,-159.2619942,0.000221,4]
[400502838,1767676241132,-159.2619942,0.000221,4]
[400502840,1767676241142,-159.2619942,0.000221,4]
[400502842,1767676241152,-159.2619942,0.000221,4]
[400502844,1767676241162,-159.2619942,0.000221,4]
[400502846,1767676241171,-159.2619942,0.000221,4]
[400502848,1767676241180,-159.2619942,0.000221,4]
[400502850,1767676241190,-159.2619942,0.000221,4]
[400502852,1767676241199,-159.2619942,0.000221,4]
[400502854,1767676241209,-159.2619942,0.000221,4]
[400502856,1767676241219,-159.2619942,0.000221,4]
[400502858,1767676241228,-159.2619942,0.000221,4]
[400502860,1767676241237,-159.2619942,0.000221,4]
[400502862,1767676241248,-159.2619942,0.000221,4]
[400502864,1767676241257,-159.2619942,0.000221,4]
[400502866,1767676241266,-159.2619942,0.000221,4]
[400502868,1767676241275,-159.2619942,0.000221,4]
[400502870,1767676241284,-159.2619942,0.000221,4]
[400502872,1767676241293,-159.2619942,0.000221,4]
[400502874,1767676241303,-159.2619942,0.000221,4]
[400502876,1767676241312,-159.2619942,0.000221,4]
[400502878,1767676241321,-159.2619942,0.000221,4]
[400502880,1767676241331,-159.2619942,0.000221,4]
[400502882,1767676241342,-159.2619942,0.000221,4]
[400502884,1767676241352,-159.2619942,0.000221,4]
[400502886,1767676241361,-159.2619942,0.000221,4]
[400502888,1767676241371,-159.2619942,0.000221,4]
[400502890,1767676241380,-159.2619942,0.000221,4]
[400502892,1767676241389,-159.2619942,0.000221,4]
[400502894,1767676241399,-159.2619942,0.000221,4]
[400502896,1767676241409,-159.2619942,0.000221,4]
[400502898,1767676241418,-159.2619942,0.000221,4]
[400502900,1767676241427,-159.2619942,0.000221,4]
[400502902,1767676241436,-159.2619942,0.000221,4]
[400502904,1767676241446,-159.2619942,0.000221,4]
[400502906,1767676241455,-159.2619942,0.000221,4]
[400502908,1767676241464,-159.2619942,0.000221,4]
[400502911,1767676241474,-189.44294243,0.000221,2]
[400502913,1767676241483,-150.52056,0.000221,2]
[400502915,1767676241492,-150.52056,0.000221,2]
[400502917,1767676241502,-150.52056,0.000221,2]
[400502919,1767676241512,-150.52055,0.000221,2]
[400502921,1767676241521,-798.93936564,0.000221,2]
[400502922,1767676241530,-239.82467754,0.0002211,2]
[400502924,1767676241539,-500.0,0.0002212,2]
[400502926,1767676241549,-1000.0,0.00022192,2]
[400502929,1767676241558,-661.02,0.00022217,2]
[400502931,1767676241568,-152.0,0.0002228,9]
[400502933,1767676241577,-158.04,0.0002231,2]
[400502935,1767676241587,-1000.0,0.00022466,2]
[400502937,1767676241597,-150.0,0.00022488,2]
[400502939,1767676241607,-35431.74195841,0.000225,2]
[400502941,1767676241618,-2900.0,0.000225,15]
[400502943,1767676241627,-823.0,0.00022556,2]
[400502945,1767676241636,-450.0,0.00022616,2]
[400502947,1767676241645,-600.0,0.00022648,7]
[400502949,1767676241654,-541.25263989,0.00022648,7]
[400502951,1767676241663,-500.0,0.00022648,7]
[400502953,1767676241673,-522.29618249,0.0002271,2]
[400502955,1767676241682,-1000.0,0.0002274,2]
[400502957,1767676241691,-1000.0,0.00022792,2]
[400502959,1767676241701,-152.0,0.00022833,10]
[400502961,1767676241714,-3292.0,0.00022893,2]
[400502963,1767676241724,-425.23544812,0.000229,2]
[400502965,1767676241733,-1000.0,0.00023,14]
[400502967,1767676241742,-1006.08273153,0.00023,2]
[400502969,1767676241753,-181437.29011071,0.00023,2]
[400502971,1767676241762,-170.0,0.00023,7]
[400502973,1767676241771,-156.0,0.00023,7]
[400502975,1767676241781,-1000.0,0.00023014,2]
[400502977,1767676241792,-2581.33786342,0.000231,2]
[400502979,1767676241803,-550.0,0.00023164,2]
[400502981,1767676241812,-788.11,0.00023186,2]
[400502983,1767676241822,-188.28438962,0.000232,2]
[400502985,1767676241832,-2000.0,0.000232,2]
[400502987,1767676241841,-2000.63528841,0.00023211,2]
[400502989,1767676241852,-500.0,0.00023241,2]
[400502991,1767676241862,-500.0,0.00023242,2]
[400502993,1767676241870,-499.9999,0.00023243,2]
[400502995,1767676241880,-156.0,0.00023288,7]
[400502997,1767676241889,-1000.0,0.00023288,2]
[400502999,1767676241898,-355.38565174,0.00023288,2]
[400503001,1767676241908,-152.0,0.00023387,11]
[400503003,1767676241918,-1000.0,0.000234,2]
[400503005,1767676241927,-200.0,0.000235,2]
[400503007,1767676241937,-1000.0,0.00023562,2]
[400503009,1767676241946,-2797.93888501,0.00023685,2]
[400503011,1767676241955,-158.04,0.00023704,2]
[400503013,1767676241965,-650.0,0.00023712,2]
[400503015,1767676241973,-617.0,0.00023726,2]
[400503017,1767676241983,-600.0,0.00023744,7]
[400503019,1767676241992,-177.69,0.00023755,2]
[400503021,1767676242001,-1000.0,0.00023758,2]
[400503023,1767676242011,-1000.0,0.00023836,2]
[400503025,1767676242021,-152.0,0.0002394,12]
[400503027,1767676242031,-167.87119733,0.0002394,5]
[400503029,1767676242040,-16665.44653052,0.00024,2]
[400503031,1767676242049,-250.0,0.00024,6]
[400503033,1767676242059,-1019.37322955,0.00024,2]
[400503035,1767676242068,-3600.0,0.00024,2]
[400503037,1767676242078,-1232.70433387,0.00024,2]
[400503039,1767676242087,-5999.99,0.00024,5]
[400503041,1767676242097,-1000.0,0.0002411,2]
[400503043,1767676242106,-171.0,0.00024164,7]
[400503045,1767676242115,-156.0,0.00024164,7]
[400503047,1767676242124,-2219.8027781,0.00024199,2]
[400503049,1767676242133,-421.18467548,0.0002421,2]
[400503050,1767676242142,-3689.51768723,0.0002421,2]
[400503051,1767676242151,-419.58933012,0.0002426,2]
[400503052,1767676242161,-1000.0,0.00024384,2]
[400503053,1767676242170,-2000.63528841,0.00024422,2]
[400503054,1767676242179,-1896.041,0.0002451,2]
[400503055,1767676242188,-2435.0,0.0002451,2]
[400503056,1767676242198,-163.92890726,0.0002455,15]
[400503057,1767676242208,-1152.0,0.00024628,2]
[400503058,1767676242217,-596.37905383,0.0002465,2]
[400503059,1767676242227,-1000.0,0.00024658,2]
[400503060,1767676242236,-1000.0,0.00024658,2]
[400503061,1767676242246,-1559.58,0.00024658,2]
[400503062,1767676242255,-170.3933799,0.00024658,7]
[400503064,1767676242264,-216.04197677,0.000247,2]
[400503066,1767676242273,-762.4701686,0.00024755,2]
[400503068,1767676242282,-180421.308583,0.000248,3]
[400503071,1767676242292,-600.0,0.0002484,7]
[400503073,1767676242301,-500.0,0.0002484,7]
[400503075,1767676242310,-35768.1434623,0.000249,3]
[400503076,1767676242319,-13878.5621987,0.0002499,3]
[400503078,1767676242328,-11922.7144874,0.0002499,3]
[400503080,1767676242338,-7039.42235992,0.00025,2]
[400503089,1767676242664,-59.25752562,0.00025,2]
[400503090,1767676242675,-1064.16849789,0.00025,2]
[400503091,1767676242689,-45.39444947,0.00025,2]
[400503092,1767676242699,-926.76553381,0.00025,2]
[400503093,1767676242738,-981.0,0.00021838,2]
[400503094,1767676242748,-1334.09651318,0.00025,2]
[400503095,1767676242762,-276.98000026,0.00025,2]
[400503096,1767676242773,-3625.08777485,0.00025,2]
[400503097,1767676242785,-206.76439892,0.00025,2]
[400503098,1767676242794,-1778.32801199,0.00025,2]
[400503099,1767676242803,-381.72152266,0.00025,2]
[400503100,1767676242812,-360.0,0.00025,2]
[400503101,1767676242822,-608.72013539,0.00025,2]
[400503102,1767676242832,-2392.32590219,0.00025,2]
[400503107,1767676243802,-500.0,0.00024938,2]
[400503108,1767676243812,-41.82394898,0.00025,2]
[400503109,1767676243860,-599.15850589,0.00025,2]
[400503110,1767676243869,-110.01149411,0.00025,2]
[400503125,1767676245862,-950.61741421,0.00025,2]
[400503126,1767676245871,-166.69865894,0.00025,2]
[400503127,1767676245882,-2278.75186738,0.00025,2]
[400503128,1767676245892,-150.0,0.00025,2]
[400503129,1767676245902,-151.546,0.00025,2]
[400503130,1767676245911,-150.0,0.00025,2]
[400503131,1767676245920,-150.0,0.00025,2]
[400503132,1767676245931,-150.0,0.00025,2]
[400503133,1767676245982,-150.0,0.00025,2]
[400503134,1767676245995,-150.0,0.00025,2]
[400503135,1767676246004,-150.0,0.00025,2]
[400503136,1767676246014,-150.0,0.00025,2]
[400503137,1767676246023,-150.0,0.00025,2]
[400503138,1767676246032,-150.0,0.00025,2]
[400503139,1767676246041,-150.0,0.00025,2]
[400503140,1767676246050,-150.0,0.00025,2]
[400503141,1767676246059,-293.165,0.00025,2]
[400503142,1767676246069,-158.04,0.00025099,2]
[400503143,1767676246079,-4609.0,0.00025119,2]
[400503144,1767676246088,-157.0,0.00025373,7]
[400503145,1767676246097,-425.23544805,0.00025471,2]
[400503146,1767676246106,-170.1300908,0.00025475,2]
[400503147,1767676246115,-2000.63528841,0.00025633,2]
[400503148,1767676246123,-205.21078621,0.00025656,2]
[400503149,1767676246134,-1081.03893058,0.00025656,2]
[400503150,1767676246146,-1511.68916822,0.00025656,2]
[400503151,1767676246155,-1901.8974813,0.0002572,2]
[400503152,1767676246163,-11922.7144874,0.00025989,3]
[400503153,1767676246173,-598.69878167,0.0002599,2]
[400503154,1767676246182,-13878.5621987,0.0002599,3]
[400503155,1767676246194,-11922.7144874,0.0002599,3]
[400503156,1767676246204,-15441.43108196,0.00025999,14]
[400503157,1767676246213,-215.76724941,0.00026,2]
[400503158,1767676246221,-162.41154389,0.00026,2]
[400503159,1767676246230,-150.0,0.00026,2]
[400503160,1767676246240,-4506.54564382,0.00026,2]
[400503161,1767676246249,-12954.58686663,0.00026,10]
[400503162,1767676246264,-5108.61316754,0.00026,10]
[400503163,1767676246273,-13784.03269759,0.0002639,3]
[400503164,1767676246284,-94.52950111,0.0002639,3]
[400503165,1767676246294,-5115.61358088,0.0002639,3]
[400503166,1767676246305,-593.82396974,0.0002639,3]
[400503167,1767676246317,-1089.88117537,0.0002639,3]
[400503168,1767676246328,-547.44,0.0002639,3]
[400503169,1767676246339,-553.38530473,0.0002639,3]
[400503170,1767676246357,-4022.57045668,0.0002639,3]
[400503171,1767676246367,-1000.0,0.00026397,2]
[400503173,1767676246376,-10856.94146657,0.000264,2]
[400503175,1767676246388,-405.8537147,0.000264,2]
[400503178,1767676246399,-4296.75088854,0.000264,2]
[400503292,1767677128686,426.11879599,0.00016,2]
[400503294,1767677269165,500.0,0.00027999,120]
[400503295,1767677269391,159.63267947,0.0002997,120]
[400503298,1767677314305,142560.1888085,0.00016,4]
[400503301,1767677393531,360.0,0.00032,120]
[400503315,1767677438099,-1200.0,0.00017229,2]
[400503316,1767677438110,-300.0,0.00017229,2]
[400503317,1767677438121,-250.0,0.0001723,2]
[400503318,1767677438135,-250.0,0.00017518,2]
[400503319,1767677438145,-151.0,0.00017732,2]
[400503320,1767677438156,-151.0,0.00017774,2]
[400503321,1767677438166,-572.48419667,0.000178,2]
[400503322,1767677438177,-500.0,0.00017899,2]
[400503323,1767677438187,-191.76481661,0.00017899,2]
[400503324,1767677438197,-500.0,0.00017899,2]
[400503325,1767677438210,-500.0,0.00017899,2]
[400503326,1767677438220,-500.0,0.00017899,2]
[400503327,1767677438230,-381.42300219,0.00017899,2]
[400503328,1767677438241,-500.0,0.00017899,2]
[400503329,1767677438250,-613.64834502,0.00017899,2]
[400503330,1767677438261,-197.21112731,0.00017899,2]
[400503331,1767677438277,-500.0,0.00017899,2]
[400503333,1767677438287,-500.0,0.00017899,2]
[400503335,1767677438296,-500.0,0.00017899,2]
[400503336,1767677438308,-500.0,0.00017899,2]
[400503337,1767677438317,-500.0,0.00017899,2]
[400503338,1767677438330,-500.0,0.00017899,2]
[400503339,1767677438340,-500.0,0.00017899,2]
[400503340,1767677438355,-500.0,0.00017899,2]
[400503341,1767677438365,-500.0,0.00017899,2]
[400503349,1767677438626,-500.0,0.00017899,2]
[400503351,1767677438637,-500.0,0.00017899,2]
[400503353,1767677438647,-500.0,0.00017899,2]
[400503355,1767677438657,-627.48628539,0.00017899,2]
[400503357,1767677438668,-500.0,0.00017899,2]
[400503359,1767677438677,-500.0,0.00017899,2]
[400503361,1767677438686,-500.0,0.00017899,2]
[400503363,1767677438695,-500.0,0.00017899,2]
[400503365,1767677438704,-500.0,0.00017899,2]
[400503367,1767677438716,-500.0,0.00017899,2]
[400503370,1767677438725,-500.0,0.00017899,2]
[400503372,1767677438735,-500.0,0.00017899,2]
[400503373,1767677438744,-500.0,0.00017899,2]
[400503375,1767677438753,-500.0,0.00017899,2]
[400503377,1767677438763,-500.0,0.00017899,2]
[400503379,1767677438772,-500.0,0.00017899,2]
[400503381,1767677438781,-500.0,0.00017899,2]
[400503383,1767677438791,-500.0,0.00017899,2]
[400503385,1767677438800,-32667.94320667,0.000179,2]
[400503387,1767677438809,-609.89470962,0.000179,2]
[400503389,1767677438817,-1550.416,0.000179,2]
[400503391,1767677438827,-1041.10799722,0.000179,2]
[400503393,1767677438835,-2500.0,0.000179,2]
[400503395,1767677438844,-298.31721101,0.000179,2]
[400503397,1767677438853,-787.54395464,0.000179,2]
[400503399,1767677438863,-335.22056529,0.000179,2]
[400503401,1767677438871,-500.0,0.00017973,2]
[400503403,1767677438880,-504.3199228,0.00017973,2]
[400503405,1767677438890,-150.0,0.00017973,2]
[400503407,1767677438899,-600.48752458,0.0001799,2]
[400503409,1767677438908,-600.48752458,0.0001799,2]
[400503411,1767677438917,-151.0,0.00017997,2]
[400503413,1767677438926,-300.0,0.00017999,2]
[400503415,1767677438935,-300.0,0.00017999,2]
[400503417,1767677438945,-300.0,0.00017999,2]
[400503419,1767677438954,-260.08737013,0.00017999,2]
[400503421,1767677438965,-500.0,0.00017999,2]
[400503423,1767677438974,-178.63546262,0.00017999,2]
[400503425,1767677438984,-205.49456957,0.00017999,2]
[400503427,1767677438994,-289.42620703,0.00017999,2]
[400503429,1767677439004,-1538481.28516819,0.00018,2]
[400503431,1767677439016,-1815221.25815189,0.00018,2]
[400503438,1767677439067,-301.76454383,0.00018,2]
[400503552,1767677440182,-336.594463,0.000179,2]
[400503555,1767677440192,-346.22284211,0.00018,2]
[400503557,1767677440203,-774.6985844,0.00018,2]
[400503563,1767677440242,-6598.49220501,0.00018,2]
[400503912,1767677443794,-1137.80774843,0.00018,2]
[400503978,1767677444409,-1821.35381465,0.00018,2]
[400503984,1767677444452,-489.64607935,0.00018,2]
[400504144,1767677446056,-647.22640714,0.00018,2]
[400504146,1767677446068,-409.14193754,0.00018,2]
[400504148,1767677446079,-17620.75252949,0.00018,2]
[400504226,1767677572620,500.0,0.00032876,120]
[400504227,1767677572867,500.0,0.00032876,120]
[400504228,1767677573146,500.0,0.00032876,120]
[400504229,1767677573391,500.0,0.00032876,120]
[400504230,1767677573640,500.0,0.00032876,120]
[400504231,1767677573900,500.0,0.00032876,120]
[400504232,1767677574176,500.0,0.00032876,120]
[400504233,1767677574424,500.0,0.00032876,120]
[400504234,1767677574784,500.0,0.00032876,120]
[400504235,1767677575039,500.0,0.00032876,120]
[400504236,1767677575294,500.0,0.00032876,120]
[400504237,1767677575521,500.0,0.00032876,120]
[400504238,1767677576138,500.0,0.00032876,120]
[400504239,1767677576446,500.0,0.00032876,120]
[400504240,1767677576796,500.0,0.00032876,120]
[400504241,1767677577031,500.0,0.00032876,120]
[400504242,1767677577266,500.0,0.00032876,120]
[400504243,1767677577498,500.0,0.00032876,120]
[400504244,1767677577728,500.0,0.00032876,120]
[400504245,1767677578179,500.0,0.00032876,120]
[400504246,1767677578259,500.0,0.00032876,120]
[400504247,1767677580007,500.0,0.00032876,120]
[400504248,1767677580261,163.21658897,0.00032876,120]
[400504254,1767678377691,800.57995898,0.00032876,120]
[400504255,1767678430140,-630.02,0.00016622,2]
[400504256,1767678430164,-200.0,0.0001677,2]
[400504257,1767678430192,-208.80314189,0.00016883,2]
[400504258,1767678439596,206.9,0.000328,120]
[400504259,1767678542048,3377.03,0.00016438,2]
[400504264,1767678632161,-292.0,0.00016883,2]
[400504265,1767678632171,-250.0,0.00016883,2]
[400504266,1767678632180,-174.94858052,0.00016997,2]
[400504267,1767678632192,-949.19781272,0.00016997,2]
[400504268,1767678632203,-660.78173265,0.00016997,2]
[400504269,1767678632216,-233.62187411,0.00016997,2]
[400504270,1767678632225,-300.0,0.00017029,2]
[400504271,1767678632237,-247.09339664,0.00017029,2]
[400504272,1767678632248,-52.90660336,0.00017029,2]
[400504273,1767678632257,-1200.0,0.00017029,2]
[400504274,1767678632266,-1792.61339664,0.0001703,2]
[400504275,1767678632278,-357.87831592,0.0001703,2]
[400504276,1767678632290,-5554.73846656,0.0001703,2]
[400504282,1767678632535,-835.19021143,0.0001703,2]
[400504283,1767678632547,-567.05475244,0.0001703,2]
[400504284,1767678632558,-7072.7823092,0.0001703,2]
[400504285,1767678632569,-4208.02539024,0.0001703,2]
[400504286,1767678632580,-3981.56994553,0.0001703,2]
[400504287,1767678632594,-1024.16079093,0.0001703,2]
[400504288,1767678632606,-16829.84269658,0.0001703,2]
[400504289,1767678632617,-290.05642929,0.0001703,2]
[400504290,1767678632633,-603.84235597,0.0001703,2]
[400504291,1767678632644,-8614.86124748,0.0001703,2]
[400504292,1767678632655,-14361.84713073,0.0001703,2]
[400504293,1767678632667,-2152.66125016,0.0001703,2]
[400504294,1767678632677,-2062.13091084,0.0001703,2]
[400504295,1767678632695,-1613.9502996,0.0001703,2]
[400504296,1767678632706,-4328.06566314,0.0001703,2]
[400504297,1767678632773,-872.66531044,0.0001703,2]
[400504300,1767678638235,-846.33812054,0.0001703,2]
[400504301,1767678638251,-45326.63740634,0.0001703,2]
[400504303,1767678638262,-6299.57183857,0.0001703,2]
[400504304,1767678638272,-2074.75755004,0.00017031,2]
[400504305,1767678638282,-2500.0,0.00017031,2]
[400504306,1767678638292,-3966.05613506,0.00017085,2]
[400504307,1767678638302,-158.57830343,0.00017085,2]
[400504308,1767678638311,-550.0,0.0001712,2]
[400504309,1767678638321,-151.0,0.00017121,2]
[400504310,1767678638331,-151.0,0.00017121,2]
[400504311,1767678638340,-151.0,0.00017121,2]
[400504312,1767678638350,-151.0,0.00017121,2]
[400504313,1767678638360,-151.0,0.00017121,2]
[400504314,1767678638369,-151.0,0.00017121,2]
[400504315,1767678638379,-151.0,0.00017121,2]
[400504316,1767678638389,-151.0,0.00017121,2]
[400504317,1767678638399,-151.0,0.00017121,2]
[400504318,1767678638409,-151.0,0.00017121,2]
[400504319,1767678638418,-151.0,0.00017121,2]
[400504320,1767678638428,-151.0,0.00017121,2]
[400504321,1767678638438,-151.0,0.00017121,2]
[400504322,1767678638448,-151.0,0.00017121,2]
[400504323,1767678638457,-151.0,0.00017121,2]
[400504324,1767678638467,-151.0,0.00017121,2]
[400504325,1767678638477,-151.0,0.00017121,2]
[400504326,1767678638487,-151.0,0.00017121,2]
[400504327,1767678638496,-151.0,0.00017121,2]
[400504328,1767678638505,-158.9530166,0.00017121,2]
[400504329,1767678638515,-184.01,0.00017121,2]
[400504330,1767678638524,-151.0,0.00017128,2]
[400504332,1767678638533,-459.62062045,0.00017129,2]
[400504334,1767678638543,-500.0,0.00017129,2]
[400504336,1767678638553,-178.63546262,0.00017129,2]
[400504338,1767678638562,-205.49456957,0.00017129,2]
[400504340,1767678638572,-260.08737013,0.00017129,2]
[400504342,1767678638589,-289.42620703,0.00017129,2]
[400504344,1767678638610,-1327.19,0.0001713,2]
[400504346,1767678638632,-971.054,0.0001713,2]
[400504348,1767678638643,-500.0,0.0001713,2]
[400504350,1767678638654,-450.02728752,0.0001713,2]